Cogmind - Beta 10.2 *** ADVENTURER MODE // 2020.12.04 @ 20:02:09 Player: soymachine Result: Destroyed by S-27 Virus with Autogun Performance ------------- Evolutions (5) 2500 Regions Visited (10) 2000 Robots Destroyed (69) 345 Value Destroyed (2316) 2316 Prototype IDs (7) 140 Alien Tech Used (0) 0 Bonus (1066) 1066 TOTAL SCORE: 8367 Bonus ------- High Alert Combat Kills 126 Follower Combat Kills 1047 Friendly Fire -107 Cogmind --------- Core Integrity 0/1000 Matter 288/300 Energy 23/100 System Corruption 2% Temperature Cool (0) Movement Core (50) Location -5/Factory Parts ------- > --- POWER (1) -------- (None) > --- PROPULSION (4) --- (None) > --- UTILITY (10) ----- Advanced Signal Interpreter Improved Core Analyzer > --- WEAPON (2) ------- (None) > --- INVENTORY (4) ---- Beamcaster Improved Datajack Improved Remote Datajack Peak State ------------ > --- POWER ------------ Light Angular Momentum Engine > --- PROPULSION ------- Improved Treads Improved Medium Treads Improved Medium Treads Improved Medium Treads > --- UTILITY ---------- Advanced Visual Processing Unit Enhanced Optical Array Advanced Signal Interpreter Improved Salvage Targeting Computer Melee Analysis Suite Hacking Suite System Shield Drone Bay > --- WEAPON ----------- Improved Proton Missile Launcher Phasing Sabre > --- INVENTORY -------- Advanced Beam Rifle Beamcaster Improved Datajack [Rating: 62] Favorites ----------- Power Cooled Ion Engine Engine Cooled Ion Engine Power Core Light Nuclear Core Reactor Quantum Reactor Propulsion Light Treads Treads Light Treads Leg Flexi-carbon Leg Hover Unit Backup Propulsion VII Flight Unit Cesium-ion Thruster Utility Advanced Signal Interpreter Device Improved Sensor Array Storage Small Storage Unit Processor Advanced Signal Interpreter Hackware System Shield Weapon EM Pulse Cannon Energy Gun Advanced Beam Rifle Energy Cannon EM Pulse Cannon Ballistic Gun Light Assault Rifle Launcher Heavy Rocket Launcher Special Weapon Remote Datajack Impact Weapon Shock Maul Slashing Weapon Phasing Sabre Special Melee Weapon Improved Datajack Build | -11 -10 -9 -8 -8 -7 -6 -6 -6 -6 -5 ------- Run | Scr Mat Mat Mat Sto Fac Fac Ext Cet Arc Fac Slots Evolved 10 | . . 2 2 . 2 2 . . . 2 Power . | . . . . . . . . . . . Propulsion 2 | . . 1 1 . . . . . . . Utility 8 | . . 1 1 . 2 2 . . . 2 Weapon . | . . . . . . . . . . . Parts Attached 93 | . 3 4 7 16 16 4 29 6 1 7 Power 8 | . . . 1 1 1 1 2 1 . 1 Engine 5 | . . . 1 . 1 1 2 . . . Core 1 | . . . . 1 . . . . . . Reactor 2 | . . . . . . . . 1 . 1 Propulsion 34 | . 2 4 2 7 6 1 9 2 . 1 Treads 14 | . . . . 5 2 . 5 2 . . Leg 4 | . . . . . . . 4 . . . Wheel . | . . . . . . . . . . . Hover 1 | . . . . . . . . . . 1 Flight 15 | . 2 4 2 2 4 1 . . . . Utility 15 | . 1 . 2 1 3 . 5 1 . 2 Device 4 | . 1 . . . 1 . 2 . . . Storage 1 | . . . . . . . . . . 1 Processor 7 | . . . 2 . 1 . 2 1 . 1 Hackware 3 | . . . . 1 1 . 1 . . . Protection . | . . . . . . . . . . . Artifact . | . . . . . . . . . . . Weapon 36 | . . . 2 7 6 2 13 2 1 3 Energy Gun 3 | . . . . . . 1 1 . 1 . Energy Cannon 10 | . . . 2 3 2 . 2 . . 1 Ballistic Gun 1 | . . . . . . . . . . 1 Ballistic Cannon . | . . . . . . . . . . . Launcher 7 | . . . . 1 . 1 2 2 . 1 Special Weapon 1 | . . . . . 1 . . . . . Impact Weapon 4 | . . . . 2 2 . . . . . Slashing Weapon 3 | . . . . . . . 3 . . . Piercing Weapon . | . . . . . . . . . . . Special Melee Weapon 7 | . . . . 1 1 . 5 . . . Unidentified Prototypes 7 | . . . . 1 2 3 . 1 . . Parts Lost 43 | . . . 1 5 6 . 4 13 3 11 Power 4 | . . . . . 1 . . 2 . 1 Propulsion 15 | . . . 1 3 1 . 2 4 1 3 Utility 12 | . . . . 1 2 . 1 5 1 2 Weapon 12 | . . . . 1 2 . 1 2 1 5 Highest Loss Streak 6 | . . . 1 4 2 . 4 6 3 6 Average Slot Usage (%) 84 | . 83 75 89 98 93 75 86 69 40 40 Engine 4 | . 14 11 9 1 5 6 6 4 . . Core 1 | . . . . 7 . . . . . 3 Treads 16 | . . . . 13 25 . 18 18 9 . Flight 8 | . 21 31 36 21 4 26 4 . . . Device 3 | . 3 11 9 4 4 . 3 3 . . Storage 5 | . 14 11 9 9 7 6 1 . . 1 Processor 19 | . . . 13 18 15 20 27 28 24 17 Hackware 7 | . . . . 4 12 6 9 4 . . Energy Gun 1 | . . . . . . 2 4 . 1 5 Energy Cannon 5 | . . . 8 14 8 . . . . . Impact Weapon 2 | . . . . 2 3 6 1 . . . Slashing Weapon 1 | . . . . . . . 3 6 4 . Special Melee Weapon 1 | . . . . 1 1 . 1 . . . Naked Turns . | . . . . . . . . . . . Heaviest Build 31 | 10 11 9 20 21 25 20 25 27 5 31 Greatest Support 140 | 20 20 18 24 80 88 24 113 140 100 46 Greatest Overweight (x) 2 | . 1 . . 1 2 . 1 . . 2 Average Overweight (x) . | . . . . . . . . . . . Largest Inventory Capacity 10 | . 6 6 6 6 6 6 6 4 4 10 Average Capacity 5 | . 6 6 6 6 6 6 4 4 4 5 Most Carried 6 | . 6 6 6 6 6 6 6 4 2 4 Average Carried 4 | . 5 5 4 4 4 5 4 3 1 3 Final Capacity 6 | 6 6 6 6 6 6 6 4 4 4 4 Final Carried 6 | 6 5 6 3 6 5 6 4 2 2 3 Class Distribution -------------------- 31% | Hacker-Mutant 13% | Mutant 12% | Hacker-Assassin 10% | Commander-Mutant 7% | Scout 7% | Hacker-Sprinter 6% | Hacker-Skirmisher 5% | Scavenger-Mutant 3% | Sprinter Dominant Class ---------------- Mutant | -10/Materials Mutant | -9/Materials Sprinter | -8/Materials Scout | -8/Storage Hacker-Assassin | -7/Factory Hacker-Sprinter | -6/Factory Hacker-Mutant | -6/Extension Hacker-Mutant | -6/Cetus Mutant | -6/Archives Mutant | -5/Factory Resources | -11 -10 -9 -8 -8 -7 -6 -6 -6 -6 -5 ----------- Run | Scr Mat Mat Mat Sto Fac Fac Ext Cet Arc Fac Matter Collected 1358 | 185 25 . 29 334 231 . 422 93 . 39 Remotely . | . . . . . . . . . . . Salvage Created 2843 | . 49 . 50 763 735 . 881 111 . 254 Parts 124 | . 10 . 3 41 25 . 30 4 . 11 Haulers Intercepted 2 | . . . . 1 1 . . . . . Recyclers Shooed 1 | . . . . 1 . . . . . . Parts Field Recycled . | . . . . . . . . . . . Retrieved Matter . | . . . . . . . . . . . Parts Self-Destructed . | . . . . . . . . . . . Prevented . | . . . . . . . . . . . Kills | -11 -10 -9 -8 -8 -7 -6 -6 -6 -6 -5 ------- Run | Scr Mat Mat Mat Sto Fac Fac Ext Cet Arc Fac Combat Hostiles Destroyed 45 | . 3 . . 9 14 . 14 2 . 3 Melee 18 | . . . . 3 7 . 6 2 . . Guns 3 | . 3 . . . . . . . . . Cannons 7 | . . . . 5 . . 1 . . 1 AOE 8 | . . . . . 3 . 4 . . 1 Classes Destroyed 15 | . 2 . 1 7 2 . 2 1 . . Worker 6 | . . . . 1 3 . 1 . . 1 Builder 3 | . . . 1 1 1 . . . . . Tunneler 1 | . . . . . 1 . . . . . Hauler 2 | . . . . 1 1 . . . . . Recycler 4 | . . . . 1 1 . 2 . . . Operator 2 | . . . . 1 . . 1 . . . Watcher 6 | . 1 . 1 2 1 . . 1 . . Swarmer 15 | . 3 . . . 6 . 5 . . 1 Grunt 11 | . . . . 3 2 . 5 1 . . Brawler 1 | . . . . . . . 1 . . . Duelist 1 | . . . . . . . . 1 . . Sentry 8 | . . . . 5 1 . 2 . . . Hunter 4 | . . . . 1 1 . . . . 2 Programmer 4 | . . . . . 4 . . . . . Behemoth 1 | . . . . . . . 1 . . . Best Kill Streak 5 | . 4 . 2 3 3 . 5 1 . 2 Combat Bots Only 5 | . 3 . . 2 3 . 5 1 . 1 Max Kills in Single Turn 3 | . 1 . 2 2 3 . 2 1 . 2 Gunslinging . | . . . . . . . . . . . Exploded 3 | . . . . . 3 . 2 . . 1 Melee 1 | . . . . 1 1 . 1 1 . . Uniques/NPCs Destroyed . | . . . . . . . . . . . Combat | -11 -10 -9 -8 -8 -7 -6 -6 -6 -6 -5 -------- Run | Scr Mat Mat Mat Sto Fac Fac Ext Cet Arc Fac Damage Taken 6868 | . 57 40 44 550 1452 . 835 1556 605 1729 Core 1863 | . 20 21 . 50 238 . 120 210 200 1004 Absorbed by Shields . | . . . . . . . . . . . Core Remaining (%) 79 | 100 92 94 . 90 66 . . . 37 . Volleys Fired 84 | . 8 1 1 28 4 . 13 6 5 18 Largest 2 | . 2 1 2 2 2 . 2 1 1 2 Hottest 126 | . 40 20 119 126 126 . 124 43 75 100 Shots Fired 118 | . 16 1 2 37 7 . 14 6 5 30 Gun 44 | . 16 1 . . . . 1 . 5 21 Cannon 55 | . . . 2 33 7 . 5 . . 8 Launcher 19 | . . . . 4 . . 8 6 . 1 Special . | . . . . . . . . . . . Kinetic 20 | . 16 1 . . . . . . . 3 Thermal 24 | . . . . . . . 1 . 5 18 Explosive 16 | . . . . 4 . . 8 4 . . Electromagnetic 58 | . . . 2 33 7 . 5 2 . 9 Robot Hit Streak 18 | . 7 . 9 8 6 . 14 7 12 18 Robot Miss Streak 1 | . 1 . . 1 1 . 1 . . 1 Penetration Max . | . . . . . . . . . . . Secondary Targets . | . . . . . . . . . . . Shots Hit Robots 246 | . 10 . 2 47 71 . 67 19 7 23 Core Hits 90 | . 4 . 3 16 12 . 21 22 2 10 Critical Hits . | . . . . . . . . . . . Critical Kills . | . . . . . . . . . . . Critical Parts Destroyed . | . . . . . . . . . . . Melee Attacks 192 | . . . . 29 80 . 64 16 3 . Impact 117 | . . . . 22 79 . 16 . . . Slashing 28 | . . . . . . . 9 16 3 . Piercing . | . . . . . . . . . . . Sneak Attacks 56 | . . . . 7 8 . 41 . . . Combat Hostiles 2 | . . . . . . . 2 . . . Follow-up Attacks . | . . . . . . . . . . . Damage Inflicted 8663 | . 107 . 155 1576 2999 . 1891 1095 202 638 Guns 570 | . 107 . . . . . 20 . 106 337 Cannons 1239 | . . . 80 723 125 . 127 . . 184 Explosions 2217 | . . . 75 220 353 . 929 523 . 117 Melee 4637 | . . . . 633 2521 . 815 572 96 . Ramming . | . . . . . . . . . . . Kinetic 160 | . 107 . . . . . . . . 53 Thermal 1223 | . . . 75 119 353 . 286 . 106 284 Explosive 1139 | . . . . 101 . . 663 375 . . Electromagnetic 1504 | . . . 80 723 125 . 127 148 . 301 Impact 3692 | . . . . 633 2521 . 538 . . . Slashing 945 | . . . . . . . 277 572 96 . Piercing . | . . . . . . . . . . . Highest Corruption 6 | . . . . 6 4 . . 3 3 2 Average Corruption 3 | . . . . 6 3 . . 3 3 1 Corruption Purged . | . . . . . . . . . . . Effects 49 | . . . . 15 21 . . 7 3 3 Message Errors 10 | . . . . 3 6 . . 1 . . Matter Fused 13 | . . . . 3 9 . . . 1 . Heat Flow Errors 7 | . . . . 1 . . . 3 2 1 Energy Discharges 8 | . . . . 3 4 . . . . 1 Data Loss (minor) 6 | . . . . 2 1 . . 2 . 1 Targeting Errors 4 | . . . . 2 1 . . 1 . . Weapon Failures 1 | . . . . 1 . . . . . . Overload Shots . | . . . . . . . . . . . Overflow Damage 1040 | . . . 35 211 603 . 154 36 . 1 Projectiles 79 | . . . 16 48 14 . . . . 1 Explosions 138 | . . . 19 29 63 . 27 . . . Melee 823 | . . . . 134 526 . 127 36 . . Knockbacks 15 | . . . . 2 12 . 1 . . . Impact 14 | . . . . 2 11 . 1 . . . Kinetic . | . . . . . . . . . . . Secondary 1 | . . . . . 1 . . . . . Self-Inflicted Damage 131 | . . . 44 . 69 . . . . 18 Shots 3 | . . . 1 . 1 . . . . 1 Rammed . | . . . . . . . . . . . Targets Rammed . | . . . . . . . . . . . Kicked . | . . . . . . . . . . . Crushed . | . . . . . . . . . . . Highest Temperature 290 | . 8 3 60 290 129 . 33 263 228 133 Average Temperature 55 | . 3 3 33 54 60 . 8 100 131 39 Received Heat Transfer 1344 | . 6 30 . 135 171 . 225 543 144 90 Siege Activations . | . . . . . . . . . . . Robots Corrupted 4 | . . . . 2 1 . . 1 . . Combat Hostiles 2 | . . . . 1 1 . . . . . Parts Fried 24 | . . . 1 6 10 . 5 1 . 1 Impact Corruptions 42 | . . . . 6 32 . 4 . . . Robots Melted 1 | . . . . . . . . . . 1 Combat Hostiles 1 | . . . . . . . . . . 1 Parts Melted 5 | . . . . . . . 1 . . 4 Heat Transferred 1377 | . . . 50 100 200 . 287 . 185 555 Parts Sabotaged . | . . . . . . . . . . . Parts Stolen . | . . . . . . . . . . . Parts Stripped . | . . . . . . . . . . . Power Chain Reactions 3 | . . . 1 1 . . 1 . . . Missiles Intercepted . | . . . . . . . . . . . Alert | -11 -10 -9 -8 -8 -7 -6 -6 -6 -6 -5 ------- Run | Scr Mat Mat Mat Sto Fac Fac Ext Cet Arc Fac Peak Influence 644 | . 107 71 51 439 631 266 644 119 64 211 Initial 266 | . . 38 25 18 103 266 111 93 33 14 Average 185 | . 43 43 36 238 93 266 397 87 39 100 Maximum Alert Level 2 | . . . . 2 2 1 2 . . 1 Low Security (%) 61 | . 100 100 100 23 83 . 16 100 100 98 Level 1 24 | . . . . 67 9 100 39 . . 1 Level 2 14 | . . . . 8 6 . 44 . . . Level 3 . | . . . . . . . . . . . Level 4 . | . . . . . . . . . . . Level 5 . | . . . . . . . . . . . High Security . | . . . . . . . . . . . Max Security . | . . . . . . . . . . . Squads Dispatched 15 | . . . . 1 7 . 3 . . 4 Investigation 2 | . . . . . . . 2 . . . Extermination 4 | . . . . . 3 . . . . 1 Reinforcement 8 | . . . . 1 3 . 1 . . 3 Assault . | . . . . . . . . . . . Garrison 1 | . . . . . 1 . . . . . Intercept . | . . . . . . . . . . . Construction Impeded . | . . . . . . . . . . . Haulers Reinforced . | . . . . . . . . . . . Stealth | -11 -10 -9 -8 -8 -7 -6 -6 -6 -6 -5 --------- Run | Scr Mat Mat Mat Sto Fac Fac Ext Cet Arc Fac Distress Signals 8 | . 2 1 . 1 . . 1 1 . 2 Communications Jammed . | . . . . . . . . . . . Distress Signals . | . . . . . . . . . . . Times Spotted 137 | . 6 4 1 22 23 . 27 16 4 34 Peak Tracking Total 12 | . 4 7 1 5 4 . 4 6 4 12 Tactical Retreats 16 | . . . . 3 2 . . 4 . 7 Traps | -11 -10 -9 -8 -8 -7 -6 -6 -6 -6 -5 ------- Run | Scr Mat Mat Mat Sto Fac Fac Ext Cet Arc Fac Traps Triggered 5 | . . . . 1 4 . . . . . Indirectly . | . . . . . . . . . . . Trap Hack Attempts . | . . . . . . . . . . . Triggered . | . . . . . . . . . . . Disarmed . | . . . . . . . . . . . Reprogrammed . | . . . . . . . . . . . Reused . | . . . . . . . . . . . Traps Extracted . | . . . . . . . . . . . Installed . | . . . . . . . . . . . Triggered . | . . . . . . . . . . . Machines | -11 -10 -9 -8 -8 -7 -6 -6 -6 -6 -5 ---------- Run | Scr Mat Mat Mat Sto Fac Fac Ext Cet Arc Fac Machines Disabled 14 | . . . . 3 2 . 6 1 . 2 Max in Single Turn 5 | . . . . 1 2 . 5 1 . 1 Energy Cycler 3 | . . . . . . . 3 . . . Machines Sabotaged . | . . . . . . . . . . . Garrisons Compromised . | . . . . . . . . . . . Overloaded Fab Kills . | . . . . . . . . . . . Fab Network Shutdowns . | . . . . . . . . . . . Hacking | -11 -10 -9 -8 -8 -7 -6 -6 -6 -6 -5 --------- Run | Scr Mat Mat Mat Sto Fac Fac Ext Cet Arc Fac Machines Accessed 36 | . 2 3 3 5 7 1 10 1 . 4 Terminals 28 | . 2 2 2 5 4 1 10 1 . 1 Fabricators 3 | . . . . . 2 . . . . 1 Repair Stations 1 | . . . . . . . . . . 1 Recycling Units 3 | . . 1 1 . . . . . . 1 Scanalyzers 1 | . . . . . 1 . . . . . Garrison Access . | . . . . . . . . . . . Total Hacks 79 | . 4 7 5 12 19 2 22 2 . 6 Successful 45 | . 2 5 3 6 12 2 9 1 . 5 Failed 34 | . 2 2 2 6 7 . 13 1 . 1 Catastrophic 1 | . . . . . 1 . . . . . Database Lockouts . | . . . . . . . . . . . Manual 3 | . . . . 2 . . . 1 . . Terminals 62 | . 4 5 4 12 9 2 22 2 . 2 Fabricators 5 | . . . . . 4 . . . . 1 Repair Stations 2 | . . . . . . . . . . 2 Recycling Units 4 | . . 2 1 . . . . . . 1 Scanalyzers 6 | . . . . . 6 . . . . . Garrison Access . | . . . . . . . . . . . Terminal Hacks 32 | . 2 3 2 6 5 2 9 1 . 2 Open Door 8 | . . . . 1 . . 6 1 . . Emergency Access Points 1 | . . 1 . . . . . . . . Scanalyzer Index 1 | . . . . . 1 . . . . . Alert Level 1 | . 1 . . . . . . . . . Locate Traps 1 | . . 1 . . . . . . . . Dispatch Records 1 | . . . . . . . . . . 1 Transport Status 2 | . 1 . 1 . . . . . . . Investigation Status 1 | . . . . . . . 1 . . . Reinforcement Status 1 | . . . . . . . . . . 1 Assault Status 2 | . . . . 1 1 . . . . . Recall Investigation 1 | . . . . . . . 1 . . . Recall Reinforcements 1 | . . . . 1 . . . . . . Hauler Manifests 3 | . . . . 1 1 . 1 . . . Registered Components 4 | . . 1 . 1 1 1 . . . . Zone Layout 4 | . . . 1 1 1 1 . . . . Fabricator Hacks 2 | . . . . . 1 . . . . 1 Build 2 | . . . . . 1 . . . . 1 Repair Station Hacks 1 | . . . . . . . . . . 1 Refit 1 | . . . . . . . . . . 1 Recycling Unit Hacks 4 | . . 2 1 . . . . . . 1 Report Inventory 2 | . . 1 . . . . . . . 1 Retrieve Components 2 | . . 1 1 . . . . . . . Scanalyzer 6 | . . . . . 6 . . . . . Insert Component 3 | . . . . . 3 . . . . . Analyze 3 | . . . . . 3 . . . . . Garrison Access Hacks . | . . . . . . . . . . . Unauthorized Hacks . | . . . . . . . . . . . Terminals . | . . . . . . . . . . . Fabricators . | . . . . . . . . . . . Repair Stations . | . . . . . . . . . . . Recycling Units . | . . . . . . . . . . . Scanalyzers . | . . . . . . . . . . . Garrison Access . | . . . . . . . . . . . Data Cores Recovered 1 | . . . . . . . 1 . . . Used . | . . . . . . . . . . . Hacking Detections 22 | . 1 2 3 2 5 1 6 . . 2 Full Trace Events 2 | . . . . . . . 2 . . . Feedback Events . | . . . . . . . . . . . Feedback Blocked . | . . . . . . . . . . . Robot Schematics Acquired . | . . . . . . . . . . . Robots Built 1 | . . . . . 1 . . . . . Matter 153 | . . . . . 153 . . . . . Time 81 | . . . . . 81 . . . . . Total Robot Build Rating 1 | . . . . . 1 . . . . . Part Schematics Acquired 3 | . . . . . 3 . . . . . Parts Built 2 | . . . . . . . . . . 2 Matter 278 | . . . . . . . . . . 278 Time 69 | . . . . . . . . . . 69 Total Part Build Rating 18 | . . . . . . . . . . 18 Parts Repaired . | . . . . . . . . . . . Time . | . . . . . . . . . . . Parts Recycled . | . . . . . . . . . . . Recycled Matter . | . . . . . . . . . . . Retrieved Matter . | . . . . . . . . . . . Retrieved Components 3 | . . 2 1 . . . . . . . Parts Scanalyzed 3 | . . . . . 3 . . . . . Part Schematics Acquired 3 | . . . . . 3 . . . . . Parts Damaged . | . . . . . . . . . . . Bothacking | -11 -10 -9 -8 -8 -7 -6 -6 -6 -6 -5 ------------ Run | Scr Mat Mat Mat Sto Fac Fac Ext Cet Arc Fac Used RIF Installer . | . . . . . . . . . . . Robots Hacked 2 | . . . . 1 1 . . . . . Non-combat . | . . . . . . . . . . . Combat 2 | . . . . 1 1 . . . . . Robot Hacks Applied 2 | . . . . 1 1 . . . . . parse_system 2 | . . . . 1 1 . . . . . Relay Couplers Released . | . . . . . . . . . . . Robots Rewired 18 | . . . . 1 . . 17 . . . Allies Hacked . | . . . . . . . . . . . Hacks Repelled . | . . . . . . . . . . . Allies | -11 -10 -9 -8 -8 -7 -6 -6 -6 -6 -5 -------- Run | Scr Mat Mat Mat Sto Fac Fac Ext Cet Arc Fac Total Allies 33 | . . . . 10 1 . 22 . . . Largest Group 13 | . . . . 10 1 . 13 7 . . Highest-Rated Group 390 | . . . . 173 9 . 390 209 . . Highest-Rated Ally 37 | . . . . 29 9 . 37 37 . . Total Orders 6 | . . . . 1 1 . 3 1 . . ROAM 1 | . . . . . . . 1 . . . FOLLOW 1 | . . . . . . . . 1 . . AID 1 | . . . . 1 . . . . . . TUNNEL 1 | . . . . . 1 . . . . . EXPLORE 1 | . . . . . . . 1 . . . RETURN 1 | . . . . . . . 1 . . . Ally Attacks 184 | . . . . 47 . . 113 24 . . Total Damage 3208 | . . . . 676 . . 2051 481 . . Kills 30 | . . . . 7 . . 19 4 . . Allies Corrupted 1 | . . . . . . . . 1 . . Allies Melted . | . . . . . . . . . . . Intel | -11 -10 -9 -8 -8 -7 -6 -6 -6 -6 -5 ------- Run | Scr Mat Mat Mat Sto Fac Fac Ext Cet Arc Fac Robot Analysis Total . | . . . . . . . . . . . Derelict Logs Recovered . | . . . . . . . . . . . Drone Launches 2 | . . . . . . . 2 . . . Drone Recoveries 1 | . . . . . . . 1 . . . Exploration | -11 -10 -9 -8 -8 -7 -6 -6 -6 -6 -5 ------------- Run | Scr Mat Mat Mat Sto Fac Fac Ext Cet Arc Fac Turns Passed 5765 | . 79 101 287 847 2080 58 1394 325 95 499 Spaces Moved 3870 | 1 84 196 188 712 1051 90 778 152 61 557 Core 350 | . . . . . . . . . 25 325 Treads 1683 | . . . . 173 785 . 537 152 36 . Legs 63 | 1 15 . . . . . 47 . . . Wheels . | . . . . . . . . . . . Hover 232 | . . . . . . . . . . 232 Flight 1542 | . 69 196 188 539 266 90 194 . . . Fastest Speed 26 | 120 37 34 31 31 26 26 26 160 50 50 Average Speed 95 | 120 53 34 31 68 130 26 128 160 114 55 Slowest Speed 215 | 120 120 37 31 162 215 32 160 160 160 150 Overloaded Moves . | . . . . . . . . . . . Propulsion Burnouts . | . . . . . . . . . . . Robots Hopped . | . . . . . . . . . . . Cave-ins Triggered 2 | . . . . 1 . . . 1 . . Exploration Rate (%) 41 | 2 18 24 18 93 38 5 95 70 71 17 Regions Visited 10 Branch Regions 4 Pre-discovered Areas . | . . . . . . . . . . . Known Exits Taken 7 | . . . 1 1 1 1 1 1 1 . Unknown Exits Taken 3 | 1 1 1 . . . . . . . . Scrap Searched . | . . . . . . . . . . . Spaces Dug 35 | . . . . 20 12 . 2 . 1 . Terrain Destroyed 224 | . . . 6 55 50 . 51 61 1 . Melee 20 | . . . . 5 12 . 2 . 1 . Projectile . | . . . . . . . . . . . AOE 204 | . . . 6 50 38 . 49 61 . . Terrain Rammed . | . . . . . . . . . . . Walls Destroyed . | . . . . . . . . . . . Machines Disabled . | . . . . . . . . . . . Actions | -11 -10 -9 -8 -8 -7 -6 -6 -6 -6 -5 --------- Run | Scr Mat Mat Mat Sto Fac Fac Ext Cet Arc Fac Total 5583 | . 103 228 414 998 1629 123 1092 203 76 717 Wait 1239 | . 3 21 213 172 461 25 191 21 5 127 Move 3859 | . 83 195 187 710 1050 89 777 151 60 557 Hop . | . . . . . . . . . . . Pick Up 52 | . 1 3 4 16 11 3 6 2 . 6 Fast Attach 21 | . 3 1 . . . . 13 2 . 2 Attach 38 | . . . 6 8 9 2 4 3 1 5 Detach 2 | . . . . . . 1 . . 1 . Swap 34 | . . 3 1 8 7 2 12 1 . . Drop 43 | . 5 4 2 8 7 1 12 1 1 2 Fire 84 | . 8 1 1 28 4 . 13 6 5 18 Melee 192 | . . . . 29 80 . 64 16 3 . Ram . | . . . . . . . . . . . Kick . | . . . . . . . . . . . Crush . | . . . . . . . . . . . Escape Stasis 19 | . . . . 19 . . . . . . Rewire . | . . . . . . . . . . . Trap . | . . . . . . . . . . . Miscellaneous . | . . . . . . . . . . . Route ------- -11/Scrapyard -10/Materials -9/Materials -8/Materials -8/Storage -7/Factory -6/Factory -6/Extension (discovered 3 exits: *Fac x2 / *Cet) -6/Cetus -6/Archives -5/Factory History --------- Turn | Location | Event 1 | -11/Scrapyard | Discovered new exit (range 0) 1 | -11/Scrapyard | Entered Materials 72 | -10/Materials | Discovered new exit (range 10) 80 | -10/Materials | Entered another Materials area 80 | -9/Materials | Evolved 2 slots: Propulsion x1, Utility x1 180 | -9/Materials | Discovered new exit (range 3) 181 | -9/Materials | Entered another Materials area 181 | -8/Materials | Evolved 2 slots: Propulsion x1, Utility x1 256 | -8/Materials | Discovered new exit (range 17) 449 | -8/Materials | Identified exit to Storage 468 | -8/Materials | Entered Storage 629 | -8/Storage | Build established: Scout 801 | -8/Storage | Assisted by bots powering up and referring to "LRC-V3" 885 | -8/Storage | Crushed by falling debris 916 | -8/Storage | Lost 4 parts (2n1u1w) 1287 | -8/Storage | Discovered new exit (range 15) 1313 | -8/Storage | Identified exit to Factory 1315 | -8/Storage | Entered Factory 1315 | -7/Factory | Evolved 2 slots: Utility x2 1540 | -7/Factory | Build established: Hacker-Mutant 1996 | -7/Factory | Build established: Hacker-Assassin 2363 | -7/Factory | Build established: Hacker-Skirmisher 2716 | -7/Factory | Build established: Hacker-Assassin 3077 | -7/Factory | Build established: Hacker-Mutant 3112 | -7/Factory | Fabricated T-07 Excavator? 3350 | -7/Factory | Garrison activated, responded to threat 3389 | -7/Factory | Discovered new exit (range 7) 3394 | -7/Factory | Identified exit to Factory 3395 | -7/Factory | Entered another Factory area 3395 | -6/Factory | Evolved 2 slots: Utility x2 3397 | -6/Factory | Build established: Hacker-Sprinter 3451 | -6/Factory | Discovered new exit (range 7) 3452 | -6/Factory | Identified exit to Extension 3453 | -6/Factory | Entered Extension 3468 | -6/Extension | Rescued a captive Derelict 3484 | -6/Extension | Energy Cycler disabled 3484 | -6/Extension | Rescued a captive Derelict 3484 | -6/Extension | Rescued a captive Derelict 3486 | -6/Extension | Rescued a captive Derelict 3487 | -6/Extension | Rescued a captive Derelict 3492 | -6/Extension | Rescued a captive Derelict 3493 | -6/Extension | Rescued a captive Derelict 3498 | -6/Extension | Rescued a captive Derelict 3703 | -6/Extension | Spotted B-75 Beast 3713 | -6/Extension | Discovered new exit (range 19) 3713 | -6/Extension | Spotted B-75 Beast 3724 | -6/Extension | Destroyed B-75 Beast 3732 | -6/Extension | Allies destroyed B-75 Beast 3755 | -6/Extension | Lost 4 parts (2n1u1w) 3758 | -6/Extension | Identified exit to Factory 3805 | -6/Extension | Extracted ID and sensor layout for unrecognized location from A7's data core 4316 | -6/Extension | Discovered exit to Factory (range 10) 4317 | -6/Extension | Discovered new exit (range 6) 4325 | -6/Extension | Identified exit to Cetus 4431 | -6/Extension | Build established: Commander-Mutant 4741 | -6/Extension | Build established: Hacker-Mutant 4847 | -6/Extension | Entered Cetus 4847 | -6/Cetus | Accompanied by 7 allies 4862 | -6/Cetus | Spotted Cetus Guard 4867 | -6/Cetus | Spotted Cetus Guard 4867 | -6/Cetus | Spotted Cetus Guard 4867 | -6/Cetus | Spotted Cetus Guard 4880 | -6/Cetus | Allies destroyed Cetus Guard 4888 | -6/Cetus | Crushed by falling debris 4889 | -6/Cetus | Allies destroyed Cetus Guard 4893 | -6/Cetus | Allies destroyed Cetus Guard 4902 | -6/Cetus | Allies destroyed Cetus Guard 4929 | -6/Cetus | Lost 6 parts (2n2u2w) 5093 | -6/Cetus | Lost 4 parts (1p1n2u) 5142 | -6/Cetus | Discovered new exit (range 20) 5171 | -6/Cetus | Identified exit to Archives 5172 | -6/Cetus | Entered Archives 5256 | -6/Archives | Core integrity fell below 50% 5259 | -6/Archives | Discovered exit to Factory (range 13) 5267 | -6/Archives | Entered Factory 5267 | -5/Factory | Evolved 2 slots: Utility x2 5276 | -5/Factory | Lost 3 parts (1n1u1w) 5463 | -5/Factory | Fabricated Lgt. Quantum Reactor (x2) 5488 | -5/Factory | Build established: Mutant 5624 | -5/Factory | Lost 6 parts (1p3n2w) 5626 | -5/Factory | Spotted B-75 Beast 5722 | -5/Factory | Core integrity fell below 50% 5752 | -5/Factory | Core integrity fell below 20% 5766 | -5/Factory | Destroyed by S-27 Virus with Autogun Last Messages --------------- 05752_ C-30 ARC bursts open, deploying its payload. 05752_ S-27 Virus unfolds itself. 05752_ K-01 Serf collects debris. 05753_ Penetrated by Slug. 05753_ Slug penetrates Matter Pump. 05753_ Matter Pump disabled. 05755_ K-01 Serf cleans the Matter Pump. 05756_ K-01 Serf collects debris. 05757_ Penetrated by Slug. 05759_ K-01 Serf collects debris. 05761_ Penetrated by Slug. 05761_ S-27 Virus destroyed. 05761_ Matter Pump disabled. 05761_ K-01 Serf destroyed. 05761_ K-01 Serf collects debris. 05763_ Melee Analysis Suite destroyed. 05764_ Slug penetrates Wall. 05764_ K-01 Serf collects debris. 05765_ Hvy. Shock Bomb Launcher destroyed. 05766_ S-27 Virus misfires. Map ----- +----------------------------------------------------+ | #??# ""????????????????????????? #?????? | | #??# ????????????????????????? #?????? | | #??# """"??????????????????????? #?????? | | #??# ?????????????????????? #?????? | | #??# ??????????????????????? #?????? | | #??# ?????????#+#???????????? #?????? | | #??# ???????????# #??????######+####### | | #??# #????????????# #??????# # | | #??# ############## #??????# # | | #### ###????# # | | ###### # | | + # | | ###### + | | ####### ######????# # | | ??????#########+##### #?????????# # | | ????????????? ??# #?????????# # | | ???????????""" ! # #?????????# # | | ??????????#""" # #?????????# # | | ??????????#"S # #?????????# # | | ??????????#""" =]] # #?????????#####+######## | | ??????????? "" =]] # #?????????????# #???#### | | ??????????? =]] # #???????????### ##### | | ??????????# # #???????????# | | ???????????########## #???????????# | | ????????????????????# #???????????+ | | ????????????????????# @#???????????# # | | ????##############??# ############# # | | # ?? #??# ^ # | | # #??# # | | # """"" """ #??# = # | | # ""Y"" """ #??#"" ""% %%%%%%% """ # | | # """ #??#"T ""%s%%%[%%% """ #####+## | | # #??#"" ""% %%% %%" ""% #??????? | | # #??# s%= #??????? | | # ! #### = #??????? | | # #??????? | | # % g #??????? | | # """""" """""" " """" """""" #??????? | | # """""" """""" """""" """""" ####???? | | # """""" """""" """""" """""" +???? | | # """""" """""" """""" """""" ####???? | | # #??????? | | # """""" """""" #??????? | | ####### """""" """""" !!! #??????? | | ??????# """""" """""" !!! #??????? | | ??????+ """""" """""" ]!! #??????? | | ??????# #??????? | | ??????# " #??????? | | ??????# ######%####??????? | | ??????# #?????"#?????????? | +----------------------------------------------------+ Best States ------------- Heat Dissipation 40 Energy Generation 25 Energy Capacity 350 Matter Stores 300 Matter Capacity 300 Sight Range 22 Robot Scan Range 13 Terrain Scan Density 10 Jamming Range 12 Resistance: KI 20 Resistance: TH 20 Resistance: EX 20 Resistance: EM 20 Resistance: I 20 Resistance: S 20 Resistance: P 20 Evasion (%) 64 Melee Accuracy 11 Core Analysis 8 Recoil Reduction 4 Salvage Targeting 2 Offensive Hacking 20 Defensive Hacking 10 Item Schematics ----------------- Hvy. Rocket Launcher | -7/Factory | Scanalyzed EM Pulse Cannon | -7/Factory | Scanalyzed Imp. Datajack | -7/Factory | Scanalyzed Robot Schematics ------------------ None Fabricated ------------ T-07 Excavator | x1 | -7/Factory | Preloaded Lgt. Quantum Reactor | x2 | -5/Factory | Preloaded Alien Tech Used ----------------- None Achievements -------------- None Challenges ------------ None Game ------ Seed HugeLatentReconstructor Manual? 0 Play Time 01:20:54 Cumulative 259.9 hours Start 2020.12.03 @ 20:27:29 End 2020.12.04 @ 20:02:09 Sessions 3 Manual Loads 0 Difficulty Adventurer Special Mode None Game No. 207 Rogue 195 Adventurer 12 Explorer 0 Win Type - Total 1 Types 0/0/0/1/0/0/0/0/0 Lore% 34 Gallery% 64 Achievement% 41 Wizard Run 0 Options --------- ASCII 0 Keyboard 0 Movement Mouse Keybinds 0 Fullscreen 1 Font 18/SmallcapsGlow Map View 76x50 Tactical HUD 1 Map Filters NONE Filters NONE Steam 1 RUN: ae57ad8e-10d1-4a7e-9846-01e295b7ca53